fUSD/lending_fUSD_20250906
["ID","MTS","AMOUNT","RATE_DAILY","PERIOD"]
[383919587,1757172671802,-179.194848,0.0003589,30]
[383919588,1757172671812,-423.16302,0.0003589,8]
[383919589,1757172671822,-179.194848,0.0003589,30]
[383919590,1757172671833,-400.0,0.0003589,8]
[383919591,1757172671843,-1233.86,0.0003589,8]
[383919592,1757172671852,-179.194848,0.0003589,30]
[383919593,1757172671862,-945.88,0.0003589,8]
[383919594,1757172671872,-151.0,0.0003589,30]
[383919595,1757172671881,-707.200844,0.0003589,30]
[383919596,1757172671890,-400.0,0.0003589,8]
[383919597,1757172671900,-400.0,0.0003589,8]
[383919598,1757172671911,-707.200844,0.0003589,30]
[383919599,1757172671921,-419.78,0.0003589,8]
[383919600,1757172672161,-604.44,0.0003589,8]
[383919601,1757172672171,-200.123686,0.0003589,30]
[383919602,1757172672180,-523.078645,0.0003589,30]
[383919603,1757172672190,-707.200844,0.0003589,30]
[383919604,1757172672200,-151.0,0.0003589,30]
[383919605,1757172672210,-200.123686,0.0003589,30]
[383919606,1757172672219,-523.078645,0.0003589,30]
[383919607,1757172672230,-400.0,0.0003589,8]
[383919608,1757172672240,-707.200844,0.0003589,30]
[383919609,1757172672252,-151.0,0.0003589,30]
[383919610,1757172672264,-400.0,0.0003589,8]
[383919611,1757172672273,-992.17,0.0003589,8]
[383919612,1757172672283,-200.123686,0.0003589,30]
[383919613,1757172672294,-523.078645,0.0003589,30]
[383919614,1757172672305,-151.0,0.0003589,30]
[383919615,1757172672314,-200.123686,0.0003589,30]
[383919616,1757172672324,-151.0,0.0003589,30]
[383919617,1757172672335,-151.0,0.0003589,30]
[383919618,1757172672344,-523.078645,0.0003589,30]
[383919619,1757172672354,-151.0,0.0003589,30]
[383919620,1757172672364,-400.0,0.0003589,8]
[383919621,1757172672373,-151.0,0.0003589,30]
[383919622,1757172672383,-151.0,0.0003589,30]
[383919623,1757172672393,-1045.05,0.0003589,8]
[383919624,1757172672403,-400.0,0.0003589,8]
[383919625,1757172672413,-429.91,0.0003589,8]
[383919626,1757172672423,-164.819581,0.0003589,30]
[383919627,1757172672433,-151.0,0.0003589,30]
[383919628,1757172672442,-400.0,0.0003589,8]
[383919629,1757172672452,-164.819581,0.0003589,30]
[383919630,1757172672462,-151.0,0.0003589,30]
[383919631,1757172672472,-400.0,0.0003589,8]
[383919632,1757172672482,-400.0,0.0003589,8]
[383919633,1757172672492,-164.819581,0.0003589,30]
[383919634,1757172672501,-400.0,0.0003589,8]
[383919635,1757172672511,-294.506924,0.0003589,30]
[383919636,1757172672521,-151.0,0.0003589,30]
[383919637,1757172672531,-164.819581,0.0003589,30]
[383919638,1757172672541,-151.0,0.0003589,30]
[383919639,1757172672551,-413.34,0.0003589,8]
[383919640,1757172672560,-400.0,0.0003589,8]
[383919641,1757172672571,-400.0,0.0003589,8]
[383919642,1757172672582,-151.0,0.0003589,30]
[383919643,1757172672595,-400.0,0.0003589,8]
[383919644,1757172672606,-400.0,0.0003589,8]
[383919645,1757172672616,-400.0,0.0003589,8]
[383919646,1757172672626,-667.646775,0.0003589,30]
[383919647,1757172672636,-400.0,0.0003589,8]
[383919648,1757172672647,-214.541218,0.0003589,30]
[383919649,1757172672657,-667.646775,0.0003589,30]
[383919650,1757172672667,-214.541218,0.0003589,30]
[383919651,1757172672676,-400.0,0.0003589,8]
[383919652,1757172672686,-790.23,0.0003589,8]
[383919653,1757172672696,-214.541218,0.0003589,30]
[383919654,1757172672706,-400.0,0.0003589,8]
[383919655,1757172672716,-400.0,0.0003589,8]
[383919656,1757172672726,-214.541218,0.0003589,30]
[383919657,1757172672735,-400.0,0.0003589,8]
[383919658,1757172672745,-400.0,0.0003589,8]
[383919659,1757172672755,-2436.64,0.0003589,8]
[383919660,1757172672764,-667.646775,0.0003589,30]
[383919661,1757172672774,-400.0,0.0003589,8]
[383919662,1757172672784,-151.0,0.0003589,30]
[383919663,1757172672794,-667.646775,0.0003589,30]
[383919664,1757172672804,-400.0,0.0003589,8]
[383919665,1757172672814,-1094.56,0.0003589,8]
[383919666,1757172672825,-400.0,0.0003589,8]
[383919667,1757172672834,-400.0,0.0003589,8]
[383919668,1757172672845,-151.0,0.0003589,30]
[383919669,1757172672854,-400.0,0.0003589,8]
[383919670,1757172672863,-400.0,0.0003589,8]
[383919671,1757172672873,-400.0,0.0003589,8]
[383919672,1757172672882,-535.79,0.0003589,8]
[383919673,1757172672892,-730.61,0.0003589,8]
[383919674,1757172672902,-400.0,0.0003589,8]
[383919675,1757172672912,-651.47,0.0003589,8]
[383919676,1757172672922,-400.0,0.0003589,8]
[383919677,1757172672932,-418.47,0.0003589,8]
[383919678,1757172672942,-2213.66,0.0003589,8]
[383919679,1757172672951,-458.46,0.0003589,8]
[383919680,1757172672961,-652.06,0.0003589,8]
[383919681,1757172672971,-151.0,0.0003589,30]
[383919682,1757172672982,-455.66,0.0003589,8]
[383919683,1757172672992,-151.0,0.0003589,30]
[383919684,1757172673002,-545.76,0.0003589,8]
[383919685,1757172673012,-400.0,0.0003589,8]
[383919686,1757172673022,-400.0,0.0003589,8]
[383919687,1757172673031,-151.0,0.0003589,30]
[383919688,1757172673041,-400.0,0.0003589,8]
[383919689,1757172673051,-453.6,0.0003589,8]
[383919690,1757172673060,-549.68,0.0003589,8]
[383919691,1757172673070,-400.0,0.0003589,8]
[383919692,1757172673079,-400.0,0.0003589,8]
[383919693,1757172673089,-400.0,0.0003589,8]
[383919694,1757172673099,-400.0,0.0003589,8]
[383919695,1757172673108,-1828.0,0.0003589,8]
[383919696,1757172673118,-644.18,0.0003589,8]
[383919697,1757172673127,-1117.06,0.0003589,8]
[383919698,1757172673136,-400.0,0.0003589,8]
[383919699,1757172673146,-553.32,0.0003589,8]
[383919700,1757172673156,-1820.35,0.0003589,8]
[383919701,1757172673166,-400.0,0.0003589,8]
[383919702,1757172673177,-400.0,0.0003589,8]
[383919703,1757172673187,-671.63,0.0003589,8]
[383919704,1757172673198,-400.0,0.0003589,8]
[383919705,1757172673208,-1362.35,0.0003589,8]
[383919706,1757172673220,-1175.85,0.0003589,8]
[383919707,1757172673231,-400.0,0.0003589,8]
[383919708,1757172673243,-400.0,0.0003589,8]
[383919709,1757172673257,-400.0,0.0003589,8]
[383919710,1757172673267,-631.4,0.0003589,8]
[383919711,1757172673277,-400.0,0.0003589,8]
[383919712,1757172673286,-400.0,0.0003589,8]
[383919713,1757172673296,-400.0,0.0003589,8]
[383919714,1757172673305,-400.0,0.0003589,8]
[383919715,1757172673317,-400.0,0.0003589,8]
[383919716,1757172673327,-400.0,0.0003589,8]
[383919717,1757172673337,-400.0,0.0003589,8]
[383919718,1757172673349,-400.0,0.0003589,8]
[383919719,1757172673358,-400.0,0.0003589,8]
[383919720,1757172673368,-400.0,0.0003589,8]
[383919721,1757172673379,-400.0,0.0003589,8]
[383919722,1757172673389,-400.0,0.0003589,8]
[383919723,1757172673399,-1093.83,0.0003589,8]
[383919724,1757172673409,-400.0,0.0003589,8]
[383919725,1757172673418,-490.39,0.0003589,8]
[383919726,1757172673429,-400.0,0.0003589,8]
[383919727,1757172673439,-400.0,0.0003589,8]
[383919728,1757172673449,-428.7,0.0003589,8]
[383919729,1757172673460,-543.1,0.0003589,8]
[383919730,1757172673470,-400.0,0.0003589,8]
[383919731,1757172673480,-400.0,0.0003589,8]
[383919732,1757172673489,-400.0,0.0003589,8]
[383919733,1757172673500,-400.0,0.0003589,8]
[383919734,1757172673512,-600.99,0.0003589,8]
[383919735,1757172673523,-400.0,0.0003589,8]
[383919736,1757172673533,-400.0,0.0003589,8]
[383919737,1757172673543,-515.24,0.0003589,8]
[383919738,1757172673554,-400.0,0.0003589,8]
[383919739,1757172673564,-400.0,0.0003589,8]
[383919740,1757172673574,-533.89,0.0003589,8]
[383919741,1757172673583,-400.0,0.0003589,8]
[383919742,1757172673594,-400.0,0.0003589,8]
[383919743,1757172673605,-400.0,0.0003589,8]
[383919744,1757172673615,-501.41,0.0003589,8]
[383919745,1757172673625,-868.68,0.0003589,8]
[383919746,1757172673638,-400.0,0.0003589,8]
[383919747,1757172673648,-405.3700501,0.0003589,8]
[383919748,1757172673658,-472.9,0.0003589,8]
[383919749,1757172673668,-966.02,0.0003589,8]
[383919750,1757172673677,-400.0,0.0003589,8]
[383919751,1757172673687,-466.62,0.0003589,8]
[383919752,1757172673696,-400.0,0.0003589,8]
[383919753,1757172673706,-1411.12,0.0003589,8]
[383919754,1757172673716,-400.0,0.0003589,8]
[383919755,1757172673726,-578.15,0.0003589,8]
[383919756,1757172673737,-400.0,0.0003589,8]
[383919757,1757172673748,-400.0,0.0003589,8]
[383919758,1757172673758,-400.0,0.0003589,8]
[383919759,1757172673768,-1435.63,0.0003589,8]
[383919760,1757172673779,-212.52354648,0.0003589,8]
[383919761,1757172673789,-400.0,0.0003589,8]
[383919762,1757172673799,-788.1,0.0003589,8]
[383919763,1757172673809,-400.0,0.0003589,8]
[383919764,1757172673819,-400.0,0.0003589,8]
[383919765,1757172673828,-619.13,0.0003589,8]
[383919766,1757172673838,-400.0,0.0003589,8]
[383919767,1757172673849,-400.0,0.0003589,8]
[383919768,1757172673859,-400.0,0.0003589,5]
[383919769,1757172673868,-619.22,0.0003589,8]
[383919770,1757172673878,-400.0,0.0003589,8]
[383919771,1757172673888,-400.0,0.0003589,8]
[383919772,1757172673898,-3490.54,0.0003589,8]
[383919773,1757172673908,-400.0,0.0003589,8]
[383919774,1757172673917,-400.0,0.0003589,8]
[383919775,1757172673928,-2760.38,0.0003589,8]
[383919776,1757172673938,-400.0,0.0003589,8]
[383919777,1757172673948,-400.0,0.0003589,8]
[383919778,1757172673959,-435.82,0.0003589,8]
[383919779,1757172673969,-415.83,0.0003589,8]
[383919780,1757172673978,-400.0,0.0003589,8]
[383919781,1757172673988,-424.35,0.0003589,8]
[383919782,1757172673998,-2385.83,0.0003589,8]
[383919783,1757172674007,-400.0,0.0003589,8]
[383919784,1757172674018,-403.38459206,0.0003589,8]
[383919785,1757172674027,-400.0,0.0003589,8]
[383919786,1757172674037,-400.0,0.0003589,8]
[383919787,1757172674047,-400.0,0.0003589,8]
[383919788,1757172674057,-400.0,0.0003589,8]
[383919789,1757172674067,-574.35,0.0003589,8]
[383919790,1757172674077,-400.0,0.0003589,8]
[383919791,1757172674087,-401.73,0.0003589,8]
[383919792,1757172674097,-400.0,0.0003589,8]
[383919793,1757172674107,-400.0,0.0003589,8]
[383919794,1757172674116,-400.0,0.0003589,8]
[383919795,1757172674126,-1126.95,0.0003589,8]
[383919796,1757172674136,-491.37,0.0003589,8]
[383919797,1757172674146,-400.0,0.0003589,8]
[383919798,1757172674156,-4593.42,0.0003589,8]
[383919799,1757172674166,-400.0,0.0003589,8]
[383919800,1757172674176,-1283.79,0.0003589,8]
[383919801,1757172674185,-400.18301752,0.0003589,2]
[383919802,1757172674195,-400.0,0.0003589,8]
[383919803,1757172674205,-400.0,0.0003589,8]
[383919804,1757172674215,-574.59,0.0003589,8]
[383919805,1757172674224,-487.5,0.0003589,8]
[383919806,1757172674234,-400.0,0.0003589,8]
[383919807,1757172674244,-400.0,0.0003589,2]
[383919808,1757172674258,-416.91,0.0003589,8]
[383919809,1757172674268,-400.0,0.0003589,8]
[383919810,1757172674277,-400.0,0.0003589,8]
[383919811,1757172674287,-400.0,0.0003589,8]
[383919812,1757172674296,-400.0,0.0003589,8]
[383919813,1757172674306,-400.0,0.0003589,8]
[383919814,1757172674315,-400.0,0.0003589,8]
[383919815,1757172674325,-400.0,0.0003589,8]
[383919816,1757172674337,-400.0,0.0003589,8]
[383919817,1757172674347,-400.0,0.0003589,8]
[383919818,1757172674357,-400.0,0.0003589,8]
[383919819,1757172674367,-531.23,0.0003589,8]
[383919820,1757172674377,-468.67285473,0.0003589,8]
[383919821,1757172674387,-400.0,0.0003589,8]
[383919822,1757172674398,-400.0,0.0003589,8]
[383919823,1757172674408,-425.4,0.0003589,8]
[383919824,1757172674417,-400.0,0.0003589,8]
[383919825,1757172674427,-3011.38049103,0.000359,30]
[383919826,1757172674436,-2900.0,0.000359,13]
[383919827,1757172674446,-200.0,0.00035916,2]
[383919828,1757172674456,-1425.0,0.00035927,2]
[383919829,1757172674465,-168.3888056,0.00035932,2]
[383919830,1757172674475,-1425.0,0.00035932,2]
[383919831,1757172674485,-187.13778459,0.00035987,2]
[383919832,1757172674495,-212.67823062,0.00036,30]
[383919833,1757172674505,-514.85095374,0.00036,30]
[383919834,1757172674515,-2217.0,0.00036,14]
[383919835,1757172674524,-855.77024084,0.00036001,2]
[383919836,1757172674534,-1425.0,0.00036004,2]
[383919837,1757172674544,-1637.12807444,0.00036036,2]
[383919838,1757172674554,-758.68,0.000361,30]
[383919839,1757172674565,-4253.71,0.000361,2]
[383919840,1757172674574,-155.678893,0.00036154,30]
[383919841,1757172674584,-155.678893,0.00036154,30]
[383919842,1757172674593,-151.0,0.00036154,30]
[383919843,1757172674603,-155.678893,0.00036154,30]
[383919844,1757172674613,-155.678893,0.00036154,30]
[383919845,1757172674623,-152.715977,0.00036154,30]
[383919846,1757172674634,-151.0,0.00036154,30]
[383919847,1757172674643,-151.0,0.00036154,30]
[383919848,1757172674654,-151.0,0.00036154,30]
[383919849,1757172674665,-151.0,0.00036154,30]
[383919850,1757172674674,-151.291649,0.00036154,30]
[383919851,1757172674755,-151.291649,0.00036154,30]
[383919852,1757172674766,-151.291649,0.00036154,30]
[383919853,1757172674775,-151.291649,0.00036154,30]
[383919854,1757172674785,-151.0,0.00036154,30]
[383919855,1757172674795,-151.0,0.00036154,30]
[383919856,1757172674804,-151.0,0.00036154,30]
[383919857,1757172674813,-1078.236435,0.00036154,30]
[383919858,1757172674822,-151.0,0.00036154,30]
[383919859,1757172674832,-1078.236435,0.00036154,30]
[383919860,1757172674841,-151.0,0.00036154,30]
[383919861,1757172674850,-151.0,0.00036154,30]
[383919862,1757172674859,-1078.236435,0.00036154,30]
[383919863,1757172674868,-232.476356,0.00036154,30]
[383919864,1757172674878,-1078.236435,0.00036154,30]
[383919865,1757172674887,-212.888447,0.00036154,30]
[383919866,1757172674896,-151.0,0.00036154,30]
[383919867,1757172674905,-151.0,0.00036154,30]
[383919868,1757172674914,-151.0,0.00036154,30]
[383919869,1757172674923,-151.0,0.00036154,30]
[383919870,1757172674933,-715.603592,0.00036154,30]
[383919871,1757172674942,-151.0,0.00036154,30]
[383919872,1757172674951,-715.603592,0.00036154,30]
[383919873,1757172674960,-151.0,0.00036154,30]
[383919874,1757172674970,-715.603592,0.00036154,30]
[383919875,1757172674979,-151.0,0.00036154,30]
[383919876,1757172674989,-715.603592,0.00036154,30]
[383919877,1757172674999,-158.429723,0.00036154,30]
[383919878,1757172675008,-154.160661,0.00036154,2]
[383919879,1757172675019,-156.442162,0.00036154,30]
[383919880,1757172675030,-266.575925,0.00036154,30]
[383919881,1757172675040,-266.575925,0.00036154,30]
[383919882,1757172675051,-266.575925,0.00036154,30]
[383919883,1757172675060,-266.575925,0.00036154,30]
[383919884,1757172675069,-190.589297,0.00036154,30]
[383919885,1757172675078,-190.589297,0.00036154,30]
[383919886,1757172675087,-190.589297,0.00036154,30]
[383919887,1757172675097,-190.589297,0.00036154,30]
[383919888,1757172675106,-156.856924,0.00036154,30]
[383919889,1757172675115,-657.859788,0.00036154,30]
[383919890,1757172675124,-151.0,0.00036154,30]
[383919891,1757172675134,-657.859788,0.00036154,30]
[383919892,1757172675143,-657.859788,0.00036154,30]
[383919893,1757172675153,-657.859795,0.00036154,30]
[383919894,1757172675162,-179.194848,0.00036154,30]
[383919895,1757172675172,-179.194848,0.00036154,30]
[383919896,1757172675181,-179.194848,0.00036154,30]
[383919897,1757172675191,-179.194853,0.00036154,30]
[383919898,1757172675201,-151.0,0.00036154,30]
[383919899,1757172675210,-707.200844,0.00036154,30]
[383919900,1757172675219,-707.200844,0.00036154,30]
[383919901,1757172675229,-200.123686,0.00036154,30]
[383919902,1757172675238,-523.078645,0.00036154,30]
[383919903,1757172675248,-707.200844,0.00036154,30]
[383919904,1757172675261,-151.0,0.00036154,30]
[383919905,1757172675270,-200.123686,0.00036154,30]
[383919906,1757172675279,-523.078645,0.00036154,30]
[383919907,1757172675289,-707.200842,0.00036154,30]
[383919908,1757172675298,-151.0,0.00036154,30]
[383919909,1757172675309,-200.123686,0.00036154,30]
[383919910,1757172675318,-523.078645,0.00036154,30]
[383919911,1757172675329,-151.0,0.00036154,30]
[383919912,1757172675339,-151.0,0.00036154,30]
[383919913,1757172675349,-200.123684,0.00036154,30]
[383919914,1757172675358,-151.0,0.00036154,30]
[383919915,1757172675368,-523.078638,0.00036154,30]
[383919916,1757172675377,-151.0,0.00036154,30]
[383919917,1757172675387,-151.0,0.00036154,30]
[383919918,1757172675396,-151.0,0.00036154,30]
[383919919,1757172675405,-164.819581,0.00036154,30]
[383919920,1757172675415,-151.0,0.00036154,30]
[383919921,1757172675426,-164.819581,0.00036154,30]
[383919922,1757172675436,-151.0,0.00036154,30]
[383919923,1757172675447,-164.819581,0.00036154,30]
[383919924,1757172675458,-151.0,0.00036154,30]
[383919925,1757172675468,-164.819573,0.00036154,30]
[383919926,1757172675479,-151.0,0.00036154,30]
[383919927,1757172675490,-188.12238,0.00036154,30]
[383919928,1757172675500,-667.646775,0.00036154,30]
[383919929,1757172675512,-214.541218,0.00036154,30]
[383919930,1757172675523,-667.646775,0.00036154,30]
[383919931,1757172675535,-214.541218,0.00036154,30]
[383919932,1757172675546,-214.541218,0.00036154,30]
[383919933,1757172675556,-214.541217,0.00036154,30]
[383919934,1757172675565,-667.646775,0.00036154,30]
[383919935,1757172675575,-151.0,0.00036154,30]
[383919936,1757172675585,-667.646769,0.00036154,30]
[383919937,1757172675594,-151.0,0.00036154,30]
[383919938,1757172675603,-151.0,0.00036154,30]
[383919939,1757172675614,-151.0,0.00036154,30]
[383919940,1757172675624,-151.0,0.00036154,30]
[383919941,1757172675634,-400.0,0.00036163,8]
[383919942,1757172675644,-500.0,0.00036163,8]
[383919943,1757172675655,-500.0,0.00036163,8]
[383919944,1757172675664,-400.0,0.00036163,8]
[383919945,1757172675674,-400.0,0.00036163,8]
[383919946,1757172675683,-400.0,0.00036163,8]
[383919947,1757172675693,-400.0,0.00036163,8]
[383919948,1757172675702,-400.0,0.00036163,8]
[383919949,1757172675712,-400.0,0.00036163,8]
[383919950,1757172675722,-400.0,0.00036163,8]
[383919951,1757172675732,-400.0,0.00036163,8]
[383919952,1757172675741,-459.66,0.00036163,8]
[383919953,1757172675752,-496.66,0.00036163,8]
[383919954,1757172675762,-400.0,0.00036163,8]
[383919955,1757172675772,-400.0,0.00036163,8]
[383919956,1757172675782,-400.0,0.00036163,8]
[383919957,1757172675791,-400.0,0.00036163,8]
[383919958,1757172675800,-585.53,0.00036163,8]
[383919959,1757172675810,-400.0,0.00036163,8]
[383919960,1757172675820,-400.0,0.00036163,8]
[383919961,1757172675831,-400.0,0.00036163,8]
[383919962,1757172675843,-400.0,0.00036163,8]
[383919963,1757172675854,-416.43912883,0.00036163,8]
[383919964,1757172675864,-400.0,0.00036163,8]
[383919965,1757172675873,-400.0,0.00036163,8]
[383919966,1757172675882,-400.0,0.00036163,8]
[383919967,1757172675892,-400.0,0.00036163,8]
[383919968,1757172675901,-400.0,0.00036163,8]
[383919969,1757172675911,-400.0,0.00036163,8]
[383919970,1757172675920,-400.0,0.00036163,8]
[383919971,1757172675929,-400.0,0.00036163,8]
[383919972,1757172675939,-400.0,0.00036163,8]
[383919973,1757172676157,-400.0,0.00036163,8]
[383919974,1757172676167,-400.0,0.00036163,8]
[383919975,1757172676177,-400.0,0.00036163,8]
[383919976,1757172676186,-400.0,0.00036163,8]
[383919977,1757172676196,-502.90629639,0.00036163,8]
[383919978,1757172676205,-400.0,0.00036163,8]
[383919979,1757172676214,-400.0,0.00036163,8]
[383919980,1757172676223,-413.37,0.00036163,8]
[383919981,1757172676234,-400.0,0.00036163,8]
[383919982,1757172676244,-455.35,0.00036163,8]
[383919983,1757172676254,-400.0,0.00036163,8]
[383919984,1757172676264,-400.0,0.00036163,8]
[383919985,1757172676276,-400.0,0.00036163,8]
[383919986,1757172676286,-400.0,0.00036163,8]
[383919987,1757172676295,-400.0,0.00036163,8]
[383919988,1757172676305,-400.0,0.00036163,8]
[383919989,1757172676315,-400.0,0.00036163,8]
[383919990,1757172676324,-400.0,0.00036163,8]
[383919991,1757172676335,-400.0,0.00036163,8]
[383919992,1757172676344,-400.0,0.00036163,8]
[383919993,1757172676354,-466.07,0.00036163,8]
[383919994,1757172676364,-400.0,0.00036163,8]
[383919995,1757172676374,-400.0,0.00036163,8]
[383919996,1757172676383,-400.0,0.00036163,8]
[383919997,1757172676393,-400.0,0.00036163,8]
[383919998,1757172676402,-400.0,0.00036163,8]
[383919999,1757172676413,-412.17665795,0.00036163,8]
[383920000,1757172676422,-400.0,0.00036163,8]
[383920001,1757172676432,-400.0,0.00036163,8]
[383920002,1757172676441,-400.0,0.00036163,8]
[383920003,1757172676451,-400.0,0.00036163,8]
[383920004,1757172676460,-400.0,0.00036163,8]
[383920005,1757172676470,-414.18,0.00036163,8]
[383920006,1757172676479,-400.0,0.00036163,8]
[383920007,1757172676489,-189.34229414,0.00036163,8]
[383920008,1757172676498,-400.0,0.00036163,8]
[383920009,1757172676507,-459.72,0.00036163,8]
[383920010,1757172676517,-400.0,0.00036163,8]
[383920011,1757172676527,-400.0,0.00036163,8]
[383920012,1757172676536,-400.0,0.00036163,8]
[383920013,1757172676546,-400.0,0.00036163,8]
[383920014,1757172676555,-400.0,0.00036163,8]
[383920015,1757172676564,-400.0,0.00036163,8]
[383920016,1757172676574,-400.0,0.00036163,8]
[383920017,1757172676583,-400.0,0.00036163,8]
[383920018,1757172676592,-400.0,0.00036163,8]
[383920019,1757172676601,-400.0,0.00036163,8]
[383920020,1757172676611,-400.0,0.00036163,8]
[383920021,1757172676620,-191.69504257,0.00036163,8]
[383920022,1757172676630,-400.0,0.00036163,8]
[383920023,1757172676639,-400.0,0.00036163,8]
[383920024,1757172676648,-400.0,0.00036163,8]
[383920025,1757172676659,-400.0,0.00036163,8]
[383920026,1757172676669,-400.0,0.00036163,8]
[383920027,1757172676678,-400.0,0.00036163,8]
[383920028,1757172676687,-400.0,0.00036163,8]
[383920029,1757172676697,-400.0,0.00036163,8]
[383920030,1757172676706,-400.0,0.00036163,8]
[383920031,1757172676717,-400.0,0.00036163,8]
[383920032,1757172676726,-400.0,0.00036163,8]
[383920033,1757172676736,-400.0,0.00036163,8]
[383920034,1757172676747,-400.0,0.00036163,8]
[383920035,1757172676756,-476.3,0.00036163,8]
[383920036,1757172676766,-400.0,0.00036163,8]
[383920037,1757172676775,-400.0,0.00036163,8]
[383920038,1757172676784,-400.0,0.00036163,8]
[383920039,1757172676794,-400.0,0.00036163,8]
[383920040,1757172676803,-400.0,0.00036163,8]
[383920041,1757172676813,-414.62753351,0.00036163,8]
[383920042,1757172676823,-400.0,0.00036163,8]
[383920043,1757172676832,-400.0,0.00036163,8]
[383920044,1757172676841,-400.0,0.00036163,8]
[383920045,1757172676851,-400.0,0.00036163,8]
[383920046,1757172676861,-400.0,0.00036163,8]
[383920047,1757172676870,-400.0,0.00036163,8]
[383920048,1757172676880,-400.0,0.00036163,8]
[383920049,1757172676890,-400.0,0.00036163,8]
[383920050,1757172676900,-403.18539205,0.00036163,8]
[383920051,1757172676909,-400.0,0.00036163,8]
[383920052,1757172676918,-400.0,0.00036163,8]
[383920053,1757172676928,-400.0,0.00036163,8]
[383920054,1757172676938,-400.0,0.00036163,8]
[383920055,1757172676948,-400.0,0.00036163,8]
[383920056,1757172676958,-285.26528443,0.00036163,8]
[383920057,1757172676968,-639.08,0.00036163,8]
[383920058,1757172676978,-400.0,0.00036163,8]
[383920059,1757172676989,-400.0,0.00036163,8]
[383920060,1757172676999,-400.0,0.00036163,8]
[383920061,1757172677008,-400.0,0.00036163,8]
[383920062,1757172677016,-400.0,0.00036163,8]
[383920063,1757172677025,-400.0,0.00036163,8]
[383920064,1757172677033,-400.0,0.00036163,8]
[383920065,1757172677042,-400.0,0.00036163,8]
[383920066,1757172677051,-400.0,0.00036163,8]
[383920067,1757172677059,-400.0,0.00036163,8]
[383920068,1757172677069,-410.0564931,0.00036163,8]
[383920069,1757172677078,-400.0,0.00036163,8]
[383920070,1757172677086,-400.0,0.00036163,8]
[383920071,1757172677094,-400.0,0.00036163,8]
[383920072,1757172677103,-400.0,0.00036163,8]
[383920073,1757172677111,-400.0,0.00036163,8]
[383920074,1757172677120,-400.0,0.00036163,8]
[383920075,1757172677128,-400.0,0.00036163,8]
[383920076,1757172677137,-400.0,0.00036163,8]
[383920077,1757172677145,-400.0,0.00036163,8]
[383920078,1757172677153,-400.0,0.00036163,8]
[383920079,1757172677162,-400.0,0.00036163,8]
[383920080,1757172677170,-642.97,0.00036163,8]
[383920081,1757172677178,-400.0,0.00036163,8]
[383920082,1757172677187,-656.31,0.00036163,8]
[383920083,1757172677195,-400.0,0.00036163,8]
[383920084,1757172677204,-400.0,0.00036163,8]
[383920085,1757172677213,-400.0,0.00036163,8]
[383920086,1757172677221,-400.0,0.00036163,8]